[Event "*** Titled Tuesday Blitz"]
[Site "Chess.com"]
[Date "2020.04.21"]
[Round "8"]
[White "GMMarcinDziuba"]
[Black "DejanNestor64"]
[Result "1/2-1/2"]
[WhiteElo "2688"]
[BlackElo "2437"]
[TimeControl "180+1"]
[EndTime "11:39:27 PDT"]
[Termination "Game drawn by repetition"]

1. Nf3 {[%clk 0:03:00.9]} 1... Nf6 {[%clk 0:02:58.9]} 2. e3 {[%clk 0:02:59.1]}
2... e6 {[%clk 0:02:57]} 3. b3 {[%clk 0:02:57.9]} 3... d5 {[%clk 0:02:51.2]} 4.
Bb2 {[%clk 0:02:57.8]} 4... Bd6 {[%clk 0:02:50.9]} 5. c4 {[%clk 0:02:54.1]} 5...
O-O {[%clk 0:02:50.1]} 6. Nc3 {[%clk 0:02:53.4]} 6... a6 {[%clk 0:02:46]} 7. Qc2
{[%clk 0:02:44.2]} 7... c5 {[%clk 0:02:38.4]} 8. cxd5 {[%clk 0:02:43.1]} 8...
exd5 {[%clk 0:02:34.2]} 9. d4 {[%clk 0:02:43.1]} 9... Nc6 {[%clk 0:02:29.3]} 10.
dxc5 {[%clk 0:02:36.1]} 10... Bxc5 {[%clk 0:02:28.1]} 11. Be2 {[%clk 0:02:07.3]}
11... d4 {[%clk 0:02:19.1]} 12. exd4 {[%clk 0:02:07]} 12... Nxd4 {[%clk
0:02:18.3]} 13. Nxd4 {[%clk 0:02:06.6]} 13... Qxd4 {[%clk 0:02:07.3]} 14. O-O
{[%clk 0:02:05.6]} 14... Qf4 {[%clk 0:02:03.2]} 15. Nd5 {[%clk 0:01:56.6]} 15...
Nxd5 {[%clk 0:01:59.5]} 16. Qxc5 {[%clk 0:01:56.4]} 16... Be6 {[%clk 0:01:57.5]}
17. Bf3 {[%clk 0:01:50.5]} 17... Rfd8 {[%clk 0:01:47]} 18. Rfd1 {[%clk
0:01:48.5]} 18... Rac8 {[%clk 0:01:45.9]} 19. Qd4 {[%clk 0:01:47.4]} 19... Qxd4
{[%clk 0:01:44.4]} 20. Rxd4 {[%clk 0:01:38.4]} 20... Rd7 {[%clk 0:01:32.6]} 21.
Rad1 {[%clk 0:01:35.3]} 21... Rcd8 {[%clk 0:01:31.4]} 22. h4 {[%clk 0:01:12.6]}
22... h6 {[%clk 0:01:23.8]} 23. Kh2 {[%clk 0:01:04.9]} 23... b5 {[%clk 0:01:13]}
24. Rc1 {[%clk 0:01:03.9]} 24... Ne7 {[%clk 0:01:08.4]} 25. Rxd7 {[%clk
0:01:01.5]} 25... Rxd7 {[%clk 0:01:08.7]} 26. Rd1 {[%clk 0:00:56.7]} 26... Rxd1
{[%clk 0:01:06]} 27. Bxd1 {[%clk 0:00:57.6]} 27... f6 {[%clk 0:01:00.3]} 28. g4
{[%clk 0:00:57.1]} 28... Kf7 {[%clk 0:00:57.3]} 29. Kg3 {[%clk 0:00:57]} 29...
g5 {[%clk 0:00:56.2]} 30. h5 {[%clk 0:00:52]} 30... f5 {[%clk 0:00:55.2]} 31.
gxf5 {[%clk 0:00:46]} 31... Bxf5 {[%clk 0:00:52.8]} 32. f4 {[%clk 0:00:43.8]}
32... Ng8 {[%clk 0:00:39.8]} 33. fxg5 {[%clk 0:00:40.8]} 33... hxg5 {[%clk
0:00:39.4]} 34. Bf3 {[%clk 0:00:32.2]} 34... Nf6 {[%clk 0:00:23.2]} 35. h6
{[%clk 0:00:18.5]} 35... Ne4+ {[%clk 0:00:20.2]} 36. Kg2 {[%clk 0:00:13.9]}
36... Kg6 {[%clk 0:00:20]} 37. Bg7 {[%clk 0:00:12.9]} 37... g4 {[%clk
0:00:19.8]} 38. Be2 {[%clk 0:00:13.2]} 38... Ng5 {[%clk 0:00:18]} 39. Kg3 {[%clk
0:00:12.4]} 39... Ne6 {[%clk 0:00:16.7]} 40. Bxg4 {[%clk 0:00:10.7]} 40... Bxg4
{[%clk 0:00:16.9]} 41. Kxg4 {[%clk 0:00:10.9]} 41... Nxg7 {[%clk 0:00:16.9]} 42.
hxg7 {[%clk 0:00:11.3]} 42... Kxg7 {[%clk 0:00:16.7]} 43. Kf5 {[%clk 0:00:11.7]}
43... Kf7 {[%clk 0:00:17.1]} 44. Ke5 {[%clk 0:00:12.2]} 44... Ke7 {[%clk
0:00:17.4]} 45. Kd5 {[%clk 0:00:12.6]} 45... Kd7 {[%clk 0:00:17.8]} 46. Kc5
{[%clk 0:00:13.1]} 46... Kc7 {[%clk 0:00:18.1]} 47. b4 {[%clk 0:00:13.7]} 47...
Kb7 {[%clk 0:00:16.6]} 48. Kd6 {[%clk 0:00:14]} 48... Kb6 {[%clk 0:00:16.5]} 49.
Kd7 {[%clk 0:00:14.2]} 49... Kb7 {[%clk 0:00:16.6]} 50. a3 {[%clk 0:00:14.3]}
50... Kb6 {[%clk 0:00:16.4]} 51. Kc8 {[%clk 0:00:13.7]} 51... a5 {[%clk
0:00:16.6]} 52. Kd7 {[%clk 0:00:13.3]} 52... axb4 {[%clk 0:00:16.7]} 53. axb4
{[%clk 0:00:13.6]} 53... Kb7 {[%clk 0:00:16.8]} 54. Kd6 {[%clk 0:00:14.1]} 54...
Kb6 {[%clk 0:00:17]} 55. Kd5 {[%clk 0:00:14.7]} 55... Kb7 {[%clk 0:00:17.2]} 56.
Kc5 {[%clk 0:00:15]} 56... Kc7 {[%clk 0:00:17.5]} 57. Kd5 {[%clk 0:00:15.2]}
57... Kb7 {[%clk 0:00:17.3]} 58. Kd6 {[%clk 0:00:15.5]} 58... Kb6 {[%clk
0:00:17.4]} 59. Kd5 {[%clk 0:00:14.8]} 59... Kb7 {[%clk 0:00:17.4]} 1/2-1/2

[Event "*** Titled Tuesday Blitz"]
[Site "Chess.com"]
[Date "2020.04.21"]
[Round "8"]
[White "eljanov"]
[Black "vanea_03"]
[Result "1-0"]
[WhiteElo "2809"]
[BlackElo "2655"]
[TimeControl "180+1"]
[EndTime "11:39:28 PDT"]
[Termination "eljanov won by resignation"]

1. Nf3 {[%clk 0:02:59.8]} 1... d5 {[%clk 0:02:59.4]} 2. g3 {[%clk 0:02:59.5]}
2... Bg4 {[%clk 0:02:59.2]} 3. Bg2 {[%clk 0:02:58.1]} 3... Nd7 {[%clk
0:02:59.5]} 4. O-O {[%clk 0:02:57.4]} 4... e6 {[%clk 0:03:00]} 5. h3 {[%clk
0:02:54.3]} 5... Bh5 {[%clk 0:02:59.7]} 6. d4 {[%clk 0:02:53.7]} 6... Bd6 {[%clk
0:02:59.3]} 7. c4 {[%clk 0:02:52.3]} 7... c6 {[%clk 0:02:58.8]} 8. Qb3 {[%clk
0:02:50.7]} 8... Qb6 {[%clk 0:02:47.1]} 9. Nc3 {[%clk 0:02:45.9]} 9... Qxb3
{[%clk 0:02:31.5]} 10. axb3 {[%clk 0:02:45.7]} 10... Ngf6 {[%clk 0:02:30.9]} 11.
c5 {[%clk 0:02:44]} 11... Bc7 {[%clk 0:02:24.8]} 12. b4 {[%clk 0:02:44.5]} 12...
O-O {[%clk 0:02:23.4]} 13. b5 {[%clk 0:02:42]} 13... e5 {[%clk 0:02:18.6]} 14.
e3 {[%clk 0:02:27]} 14... Rfe8 {[%clk 0:02:02.4]} 15. Nd2 {[%clk 0:02:13.4]}
15... exd4 {[%clk 0:01:51.5]} 16. exd4 {[%clk 0:02:12.5]} 16... Bg6 {[%clk
0:01:51.3]} 17. Ra3 {[%clk 0:01:36.3]} 17... a6 {[%clk 0:01:28.2]} 18. b6 {[%clk
0:01:25]} 18... Bd8 {[%clk 0:01:20.3]} 19. Nb3 {[%clk 0:01:13.7]} 19... Bd3
{[%clk 0:01:16.5]} 20. Na5 {[%clk 0:01:13.8]} 20... Bxf1 {[%clk 0:01:13.6]} 21.
Kxf1 {[%clk 0:01:14]} 21... Nxb6 {[%clk 0:01:13.6]} 22. cxb6 {[%clk 0:01:12.1]}
22... Bxb6 {[%clk 0:01:14.5]} 23. Be3 {[%clk 0:01:02.6]} 23... Re7 {[%clk
0:01:03]} 24. b4 {[%clk 0:00:58.8]} 24... Ne8 {[%clk 0:00:57.2]} 25. Na4 {[%clk
0:00:56.2]} 25... Bxa5 {[%clk 0:00:54.8]} 26. bxa5 {[%clk 0:00:56.2]} 26... Nd6
{[%clk 0:00:55.5]} 27. Nb6 {[%clk 0:00:47.5]} 27... Rae8 {[%clk 0:00:55.3]} 28.
g4 {[%clk 0:00:41.5]} 28... f6 {[%clk 0:00:41.9]} 29. Bf3 {[%clk 0:00:39.3]}
29... Kf7 {[%clk 0:00:40.8]} 30. Kg2 {[%clk 0:00:37.7]} 30... Nb5 {[%clk
0:00:39.5]} 31. Rb3 {[%clk 0:00:36.8]} 31... Nd6 {[%clk 0:00:34.9]} 32. Bf4
{[%clk 0:00:33.9]} 32... Nb5 {[%clk 0:00:34.6]} 33. Be3 {[%clk 0:00:28.9]} 33...
Nd6 {[%clk 0:00:34.6]} 34. Be2 {[%clk 0:00:29.3]} 34... g5 {[%clk 0:00:26.5]}
35. Bd3 {[%clk 0:00:29.5]} 35... Kg7 {[%clk 0:00:24.9]} 36. Na4 {[%clk
0:00:26.4]} 36... Nb5 {[%clk 0:00:14.7]} 37. Nc5 {[%clk 0:00:26.3]} 37... h6
{[%clk 0:00:11]} 38. Bf5 {[%clk 0:00:25.2]} 38... Nd6 {[%clk 0:00:10.3]} 39. Bd7
{[%clk 0:00:24.6]} 39... Rh8 {[%clk 0:00:06]} 40. f4 {[%clk 0:00:19.2]} 40...
Nc4 {[%clk 0:00:05]} 41. Kf2 {[%clk 0:00:11.4]} 41... Nxe3 {[%clk 0:00:04.1]}
42. Rxe3 {[%clk 0:00:11.2]} 42... Rxe3 {[%clk 0:00:04]} 43. Kxe3 {[%clk
0:00:11.6]} 43... Rb8 {[%clk 0:00:03.8]} 44. f5 {[%clk 0:00:04.6]} 44... Kf7
{[%clk 0:00:03.8]} 45. Kd3 {[%clk 0:00:04.6]} 45... Ke7 {[%clk 0:00:04.2]} 46.
Kc3 {[%clk 0:00:04.6]} 46... Kd6 {[%clk 0:00:02.8]} 47. Be6 {[%clk 0:00:04.6]}
47... Kc7 {[%clk 0:00:02.7]} 48. Nd7 {[%clk 0:00:04.6]} 48... Kd6 {[%clk
0:00:01.9]} 49. Nxb8 {[%clk 0:00:04.4]} 1-0

[Event "*** Titled Tuesday Blitz"]
[Site "Chess.com"]
[Date "2020.04.21"]
[Round "8"]
[White "wadsy27"]
[Black "stanyga"]
[Result "0-1"]
[WhiteElo "2504"]
[BlackElo "2715"]
[TimeControl "180+1"]
[EndTime "11:39:28 PDT"]
[Termination "stanyga won on time"]

1. c4 {[%clk 0:02:58.8]} 1... e5 {[%clk 0:02:58]} 2. g3 {[%clk 0:02:58.6]} 2...
Nf6 {[%clk 0:02:57.7]} 3. Bg2 {[%clk 0:02:55.8]} 3... d5 {[%clk 0:02:57.5]} 4.
cxd5 {[%clk 0:02:55.4]} 4... Nxd5 {[%clk 0:02:57.9]} 5. Nc3 {[%clk 0:02:55.7]}
5... Nb6 {[%clk 0:02:56.9]} 6. Nf3 {[%clk 0:02:55.4]} 6... Nc6 {[%clk
0:02:55.8]} 7. O-O {[%clk 0:02:54.7]} 7... g6 {[%clk 0:02:49.4]} 8. d3 {[%clk
0:02:44.9]} 8... Bg7 {[%clk 0:02:49.2]} 9. Be3 {[%clk 0:02:35.7]} 9... O-O
{[%clk 0:02:48.5]} 10. Rc1 {[%clk 0:02:32.2]} 10... Re8 {[%clk 0:02:43.6]} 11.
a3 {[%clk 0:02:14.8]} 11... Nd4 {[%clk 0:02:38.5]} 12. Bxd4 {[%clk 0:02:00.2]}
12... exd4 {[%clk 0:02:38.1]} 13. Ne4 {[%clk 0:02:00.9]} 13... Nd5 {[%clk
0:02:38.1]} 14. Qa4 {[%clk 0:01:54.3]} 14... c6 {[%clk 0:02:23.7]} 15. Rfe1
{[%clk 0:01:45.1]} 15... a5 {[%clk 0:02:19.5]} 16. Qb3 {[%clk 0:01:29.3]} 16...
a4 {[%clk 0:02:18]} 17. Qa2 {[%clk 0:01:27.4]} 17... Be6 {[%clk 0:01:19.9]} 18.
Nc5 {[%clk 0:01:18]} 18... Bc8 {[%clk 0:01:11.8]} 19. Qc4 {[%clk 0:01:14.2]}
19... b6 {[%clk 0:01:04.8]} 20. Nxa4 {[%clk 0:01:03.7]} 20... b5 {[%clk
0:01:04.6]} 21. Qxc6 {[%clk 0:01:03.9]} 21... Rxa4 {[%clk 0:01:04.2]} 22. Qxb5
{[%clk 0:01:01.1]} 22... Ra5 {[%clk 0:01:02]} 23. Qc4 {[%clk 0:00:51.4]} 23...
Ba6 {[%clk 0:00:42.5]} 24. Qc2 {[%clk 0:00:40]} 24... Bh6 {[%clk 0:00:30.4]} 25.
Nxd4 {[%clk 0:00:28.2]} 25... Bxc1 {[%clk 0:00:29.3]} 26. Rxc1 {[%clk
0:00:27.8]} 26... Qd6 {[%clk 0:00:18.4]} 27. Qc6 {[%clk 0:00:21.9]} 27... Qxc6
{[%clk 0:00:15.4]} 28. Nxc6 {[%clk 0:00:21.4]} 28... Rb5 {[%clk 0:00:11.3]} 29.
a4 {[%clk 0:00:20.9]} 29... Rxb2 {[%clk 0:00:11]} 30. Bxd5 {[%clk 0:00:20.7]}
30... Rexe2 {[%clk 0:00:11.5]} 31. Rf1 {[%clk 0:00:18.5]} 31... Bxd3 {[%clk
0:00:10.7]} 32. a5 {[%clk 0:00:16.2]} 32... Red2 {[%clk 0:00:10.3]} 33. Re1
{[%clk 0:00:08.7]} 33... Rxf2 {[%clk 0:00:10]} 34. Ne5 {[%clk 0:00:08.4]} 34...
Rf5 {[%clk 0:00:07.9]} 35. Bxf7+ {[%clk 0:00:07.9]} 35... Rxf7 {[%clk
0:00:07.4]} 36. Nxd3 {[%clk 0:00:07.6]} 36... Ra2 {[%clk 0:00:06.9]} 37. Re5
{[%clk 0:00:05.1]} 37... Ra1+ {[%clk 0:00:06.3]} 38. Kg2 {[%clk 0:00:04.5]}
38... Ra2+ {[%clk 0:00:06.9]} 39. Kh3 {[%clk 0:00:04.5]} 39... Ra7 {[%clk
0:00:06.1]} 40. Nf4 {[%clk 0:00:03.6]} 40... R2xa5 {[%clk 0:00:05.5]} 41. Re8+
{[%clk 0:00:03.2]} 41... Kf7 {[%clk 0:00:05.6]} 42. Rh8 {[%clk 0:00:03]} 42...
Kg7 {[%clk 0:00:05.6]} 43. Rb8 {[%clk 0:00:02.8]} 43... Re5 {[%clk 0:00:04.7]}
44. Kg4 {[%clk 0:00:02.3]} 44... h5+ {[%clk 0:00:03.6]} 45. Kh3 {[%clk
0:00:01.6]} 45... Ree7 {[%clk 0:00:04.1]} 0-1

[Event "*** Titled Tuesday Blitz"]
[Site "Chess.com"]
[Date "2020.04.21"]
[Round "8"]
[White "DanilNajdin"]
[Black "starworld123"]
[Result "1-0"]
[WhiteElo "2416"]
[BlackElo "2624"]
[TimeControl "180+1"]
[EndTime "11:39:32 PDT"]
[Termination "DanilNajdin won by checkmate"]

1. d4 {[%clk 0:03:00.9]} 1... Nf6 {[%clk 0:02:59.6]} 2. c4 {[%clk 0:03:00.9]}
2... e6 {[%clk 0:03:00.2]} 3. Nc3 {[%clk 0:02:59.6]} 3... Bb4 {[%clk 0:03:00.3]}
4. e3 {[%clk 0:02:59.7]} 4... O-O {[%clk 0:02:59.1]} 5. Bd3 {[%clk 0:02:59.2]}
5... b6 {[%clk 0:02:56.9]} 6. Ne2 {[%clk 0:02:57.1]} 6... Bb7 {[%clk 0:02:56]}
7. O-O {[%clk 0:02:56.9]} 7... c5 {[%clk 0:02:55.5]} 8. a3 {[%clk 0:02:36.4]}
8... Bxc3 {[%clk 0:02:50.1]} 9. Nxc3 {[%clk 0:02:36.6]} 9... cxd4 {[%clk
0:02:41.7]} 10. exd4 {[%clk 0:02:36.8]} 10... h6 {[%clk 0:02:41.1]} 11. d5
{[%clk 0:02:30.6]} 11... exd5 {[%clk 0:02:35.4]} 12. Nxd5 {[%clk 0:02:29.4]}
12... Nxd5 {[%clk 0:02:33.7]} 13. cxd5 {[%clk 0:02:29.8]} 13... Bxd5 {[%clk
0:02:28.2]} 14. Bb1 {[%clk 0:02:27.8]} 14... Be6 {[%clk 0:02:13.4]} 15. Qd3
{[%clk 0:01:50.4]} 15... f5 {[%clk 0:02:13]} 16. Qg3 {[%clk 0:01:43.2]} 16...
Qf6 {[%clk 0:02:06.1]} 17. Bf4 {[%clk 0:01:42]} 17... Nc6 {[%clk 0:02:03]} 18.
Bd3 {[%clk 0:01:30.4]} 18... Kh8 {[%clk 0:01:48]} 19. Rac1 {[%clk 0:01:28.5]}
19... Rac8 {[%clk 0:01:44.6]} 20. Rfe1 {[%clk 0:01:24.7]} 20... Rfe8 {[%clk
0:01:34.8]} 21. h4 {[%clk 0:01:23.6]} 21... Bd5 {[%clk 0:01:23.3]} 22. b4 {[%clk
0:01:19.5]} 22... Be4 {[%clk 0:00:56.1]} 23. Bxe4 {[%clk 0:01:10.3]} 23... Rxe4
{[%clk 0:00:55]} 24. Rxe4 {[%clk 0:01:10.1]} 24... fxe4 {[%clk 0:00:55.9]} 25.
b5 {[%clk 0:01:04.8]} 25... Ne7 {[%clk 0:00:56.5]} 26. Rxc8+ {[%clk 0:01:02.7]}
26... Nxc8 {[%clk 0:00:57.4]} 27. Be5 {[%clk 0:01:03]} 27... Qf7 {[%clk
0:00:54.5]} 28. Qe3 {[%clk 0:00:56.1]} 28... Qe6 {[%clk 0:00:45.7]} 29. Qc3
{[%clk 0:00:51.9]} 29... Qg8 {[%clk 0:00:37.2]} 30. Qc7 {[%clk 0:00:28.8]} 30...
Qe8 {[%clk 0:00:25.3]} 31. Qc3 {[%clk 0:00:27.4]} 31... Qf8 {[%clk 0:00:17.6]}
32. h5 {[%clk 0:00:20.3]} 32... Ne7 {[%clk 0:00:14.3]} 33. Bd6 {[%clk
0:00:18.6]} 33... Qe8 {[%clk 0:00:11]} 34. Qe5 {[%clk 0:00:18.2]} 34... Qf7
{[%clk 0:00:08.3]} 35. Qxe7 {[%clk 0:00:18.1]} 35... Qf5 {[%clk 0:00:08]} 36.
Qf8+ {[%clk 0:00:17.4]} 36... Qxf8 {[%clk 0:00:07.7]} 37. Bxf8 {[%clk
0:00:18.1]} 37... d5 {[%clk 0:00:08.6]} 38. Kf1 {[%clk 0:00:16.8]} 38... Kg8
{[%clk 0:00:08.4]} 39. Bd6 {[%clk 0:00:16.6]} 39... Kf7 {[%clk 0:00:09.3]} 40.
Bb8 {[%clk 0:00:16.9]} 40... Ke7 {[%clk 0:00:09.9]} 41. Bxa7 {[%clk 0:00:17]}
41... Kd6 {[%clk 0:00:10.8]} 42. Bxb6 {[%clk 0:00:17.5]} 42... Kd7 {[%clk
0:00:11.7]} 43. Bd4 {[%clk 0:00:17.3]} 43... Kc8 {[%clk 0:00:12.6]} 44. Bxg7
{[%clk 0:00:16.9]} 44... Kb7 {[%clk 0:00:13.5]} 45. Bxh6 {[%clk 0:00:15.6]}
45... d4 {[%clk 0:00:14.4]} 46. Bg7 {[%clk 0:00:15.2]} 46... d3 {[%clk
0:00:14.8]} 47. Ke1 {[%clk 0:00:15.6]} 47... Kb6 {[%clk 0:00:14.9]} 48. h6
{[%clk 0:00:15.8]} 48... Kxb5 {[%clk 0:00:15.8]} 49. h7 {[%clk 0:00:15.8]} 49...
Kc4 {[%clk 0:00:16.7]} 50. Kd2 {[%clk 0:00:16.1]} 50... Kb3 {[%clk 0:00:17.6]}
51. h8=Q {[%clk 0:00:15.7]} 51... Ka2 {[%clk 0:00:18.5]} 52. Qb8 {[%clk
0:00:12]} 52... e3+ {[%clk 0:00:19.4]} 53. fxe3 {[%clk 0:00:11.8]} 53... Kxa3
{[%clk 0:00:19]} 54. Bc3 {[%clk 0:00:08.7]} 54... Ka4 {[%clk 0:00:19.9]} 55.
Qb4# {[%clk 0:00:06.8]} 1-0

[Event "*** Titled Tuesday Blitz"]
[Site "Chess.com"]
[Date "2020.04.21"]
[Round "8"]
[White "Forantes"]
[Black "aaronmaster123"]
[Result "0-1"]
[WhiteElo "2424"]
[BlackElo "2311"]
[TimeControl "180+1"]
[EndTime "11:39:35 PDT"]
[Termination "aaronmaster123 won by resignation"]

1. Nf3 {[%clk 0:02:37.6]} 1... d5 {[%clk 0:02:58.3]} 2. g3 {[%clk 0:02:38.1]}
2... Nf6 {[%clk 0:02:57.1]} 3. Bg2 {[%clk 0:02:38.6]} 3... g6 {[%clk 0:02:49.9]}
4. O-O {[%clk 0:02:38.4]} 4... Bg7 {[%clk 0:02:50]} 5. d4 {[%clk 0:02:38.8]}
5... O-O {[%clk 0:02:50]} 6. c4 {[%clk 0:02:39.1]} 6... dxc4 {[%clk 0:02:47.5]}
7. Nc3 {[%clk 0:02:39.8]} 7... b6 {[%clk 0:02:46.7]} 8. Ne5 {[%clk 0:02:34.9]}
8... c6 {[%clk 0:02:44.5]} 9. Nxc6 {[%clk 0:02:34.3]} 9... Nxc6 {[%clk
0:02:45.4]} 10. Bxc6 {[%clk 0:02:34.4]} 10... Bh3 {[%clk 0:02:45]} 11. Bf3
{[%clk 0:02:15.3]} 11... Bxf1 {[%clk 0:02:42]} 12. Bxa8 {[%clk 0:02:15.3]} 12...
Bxe2 {[%clk 0:02:37.3]} 13. Qxe2 {[%clk 0:02:14.7]} 13... Qxa8 {[%clk
0:02:36.7]} 14. Qxc4 {[%clk 0:02:08.7]} 14... e6 {[%clk 0:02:23.7]} 15. Bg5
{[%clk 0:02:03.5]} 15... Ne4 {[%clk 0:02:19.3]} 16. Be3 {[%clk 0:01:51.3]} 16...
Rc8 {[%clk 0:02:15.8]} 17. Qd3 {[%clk 0:01:49.5]} 17... Nxc3 {[%clk 0:02:04.1]}
18. bxc3 {[%clk 0:01:50.4]} 18... Qd5 {[%clk 0:02:04.1]} 19. a4 {[%clk
0:01:43.5]} 19... Qc4 {[%clk 0:01:05.9]} 20. Qxc4 {[%clk 0:01:39.6]} 20... Rxc4
{[%clk 0:01:06.8]} 21. Bd2 {[%clk 0:01:39.6]} 21... Bf8 {[%clk 0:00:56.8]} 22.
a5 {[%clk 0:01:37.5]} 22... b5 {[%clk 0:00:52.9]} 23. a6 {[%clk 0:01:22.6]}
23... Ra4 {[%clk 0:00:41.3]} 24. Rb1 {[%clk 0:00:59.1]} 24... b4 {[%clk
0:00:38.7]} 25. c4 {[%clk 0:00:45.3]} 25... Rxa6 {[%clk 0:00:34.9]} 26. Bxb4
{[%clk 0:00:44.2]} 26... Rb6 {[%clk 0:00:31.6]} 27. c5 {[%clk 0:00:40]} 27...
Rb8 {[%clk 0:00:25.5]} 28. Rb2 {[%clk 0:00:31.9]} 28... a5 {[%clk 0:00:24.2]}
29. Ba3 {[%clk 0:00:28]} 29... Rxb2 {[%clk 0:00:23.5]} 30. Bxb2 {[%clk
0:00:28.2]} 30... Be7 {[%clk 0:00:21.4]} 31. Kf1 {[%clk 0:00:27.5]} 31... Kf8
{[%clk 0:00:20.7]} 32. Ke2 {[%clk 0:00:27.9]} 32... Ke8 {[%clk 0:00:21.2]} 33.
Kd3 {[%clk 0:00:28.2]} 33... Kd7 {[%clk 0:00:21.8]} 34. Kc4 {[%clk 0:00:28.7]}
34... Kc6 {[%clk 0:00:22.5]} 35. Bc3 {[%clk 0:00:27.5]} 35... Bd8 {[%clk
0:00:23]} 36. f4 {[%clk 0:00:21.5]} 36... h5 {[%clk 0:00:23.3]} 37. Bd2 {[%clk
0:00:20.1]} 37... Bc7 {[%clk 0:00:22.1]} 38. Be3 {[%clk 0:00:19.1]} 38... Bd8
{[%clk 0:00:16.9]} 39. Bd2 {[%clk 0:00:15.9]} 39... h4 {[%clk 0:00:16.7]} 40.
Be1 {[%clk 0:00:15.2]} 40... h3 {[%clk 0:00:16.3]} 41. Bd2 {[%clk 0:00:13.7]}
41... Bc7 {[%clk 0:00:15.8]} 42. Be1 {[%clk 0:00:13.7]} 42... f6 {[%clk
0:00:13.7]} 43. Bd2 {[%clk 0:00:12.9]} 43... Bd8 {[%clk 0:00:13.4]} 44. Be1
{[%clk 0:00:12.3]} 44... g5 {[%clk 0:00:13.7]} 45. fxg5 {[%clk 0:00:12.3]} 45...
fxg5 {[%clk 0:00:14.6]} 46. Bd2 {[%clk 0:00:11.4]} 46... g4 {[%clk 0:00:14.8]}
47. Bf4 {[%clk 0:00:10.9]} 47... Bf6 {[%clk 0:00:14]} 48. Be3 {[%clk 0:00:10.2]}
48... Be7 {[%clk 0:00:10.3]} 49. Bf4 {[%clk 0:00:10.3]} 49... Bd8 {[%clk
0:00:08]} 50. Be5 {[%clk 0:00:09.1]} 50... Bg5 {[%clk 0:00:06.9]} 51. Bd6 {[%clk
0:00:03.6]} 51... Be3 {[%clk 0:00:05.6]} 52. Be5 {[%clk 0:00:03.3]} 52... Bg1
{[%clk 0:00:05.6]} 53. Kb3 {[%clk 0:00:03.8]} 53... Bxh2 {[%clk 0:00:05.6]} 54.
Ka4 {[%clk 0:00:04.4]} 54... Bg1 {[%clk 0:00:05.8]} 55. Kxa5 {[%clk 0:00:05.1]}
55... h2 {[%clk 0:00:06.4]} 0-1

[Event "*** Titled Tuesday Blitz"]
[Site "Chess.com"]
[Date "2020.04.21"]
[Round "8"]
[White "eldidi20"]
[Black "pooh2012"]
[Result "0-1"]
[WhiteElo "2194"]
[BlackElo "2490"]
[TimeControl "180+1"]
[EndTime "11:39:37 PDT"]
[Termination "pooh2012 won by resignation"]

1. e4 {[%clk 0:03:00.9]} 1... c6 {[%clk 0:02:58.1]} 2. d4 {[%clk 0:02:55.2]}
2... d5 {[%clk 0:02:58.2]} 3. e5 {[%clk 0:02:55.7]} 3... Bf5 {[%clk 0:02:57.9]}
4. Nf3 {[%clk 0:02:56.2]} 4... e6 {[%clk 0:02:58.1]} 5. Be2 {[%clk 0:02:56.8]}
5... Nd7 {[%clk 0:02:55.4]} 6. O-O {[%clk 0:02:54.4]} 6... Bg6 {[%clk
0:02:55.8]} 7. c4 {[%clk 0:02:41.7]} 7... dxc4 {[%clk 0:02:51.2]} 8. Bxc4 {[%clk
0:02:40.6]} 8... Nb6 {[%clk 0:02:51.7]} 9. Be2 {[%clk 0:02:37]} 9... Nh6 {[%clk
0:02:46.5]} 10. Bxh6 {[%clk 0:02:31.7]} 10... gxh6 {[%clk 0:02:43.8]} 11. Nc3
{[%clk 0:02:31.9]} 11... Bg7 {[%clk 0:02:38.8]} 12. Qb3 {[%clk 0:02:25.8]} 12...
O-O {[%clk 0:02:33.8]} 13. a4 {[%clk 0:02:24.3]} 13... a5 {[%clk 0:02:32.4]} 14.
Rad1 {[%clk 0:02:16.6]} 14... Qc7 {[%clk 0:02:26.4]} 15. Rfe1 {[%clk 0:02:16.8]}
15... Rfd8 {[%clk 0:02:24.8]} 16. Rd2 {[%clk 0:01:52.4]} 16... Rd7 {[%clk
0:02:06.5]} 17. Red1 {[%clk 0:01:52.1]} 17... Rad8 {[%clk 0:02:05.5]} 18. h3
{[%clk 0:01:46.5]} 18... Nd5 {[%clk 0:02:00.4]} 19. Bc4 {[%clk 0:01:33.8]} 19...
Nb4 {[%clk 0:01:44.2]} 20. Kf1 {[%clk 0:01:00.2]} 20... Bh5 {[%clk 0:01:37.6]}
21. g4 {[%clk 0:00:59.1]} 21... Bg6 {[%clk 0:01:37.2]} 22. Ke2 {[%clk
0:00:51.1]} 22... h5 {[%clk 0:01:37.1]} 23. Nh4 {[%clk 0:00:39]} 23... hxg4
{[%clk 0:01:27.3]} 24. Nxg6 {[%clk 0:00:37.9]} 24... hxg6 {[%clk 0:01:25.6]} 25.
hxg4 {[%clk 0:00:38.8]} 25... Bxe5 {[%clk 0:01:09.5]} 26. Bxe6 {[%clk
0:00:20.8]} 26... Rxd4 {[%clk 0:01:03.8]} 27. Rxd4 {[%clk 0:00:18.5]} 27... Bxd4
{[%clk 0:01:01.3]} 28. Rxd4 {[%clk 0:00:15.8]} 28... Rxd4 {[%clk 0:01:00.6]} 29.
Bc4 {[%clk 0:00:12.4]} 29... Qe5+ {[%clk 0:01:00]} 30. Kf1 {[%clk 0:00:11.7]}
30... Qf4 {[%clk 0:00:58.4]} 31. Ne2 {[%clk 0:00:10.4]} 31... Qxg4 {[%clk
0:00:35.6]} 32. Nxd4 {[%clk 0:00:09.7]} 32... Qxd4 {[%clk 0:00:36.5]} 33. Bxf7+
{[%clk 0:00:10.2]} 33... Kg7 {[%clk 0:00:37.1]} 34. Bg8 {[%clk 0:00:10.9]} 34...
Qd3+ {[%clk 0:00:33.5]} 35. Kg2 {[%clk 0:00:07.6]} 35... Qxb3 {[%clk 0:00:32.3]}
36. Bxb3 {[%clk 0:00:08.5]} 36... Nd3 {[%clk 0:00:31.7]} 37. Bc2 {[%clk
0:00:06.5]} 37... Nxb2 {[%clk 0:00:31.1]} 38. Kf3 {[%clk 0:00:06.9]} 38... b5
{[%clk 0:00:30.2]} 39. axb5 {[%clk 0:00:06.7]} 39... cxb5 {[%clk 0:00:31.1]} 40.
Ke3 {[%clk 0:00:07.5]} 40... a4 {[%clk 0:00:31.5]} 41. Kd2 {[%clk 0:00:07.6]}
41... b4 {[%clk 0:00:26.6]} 42. Kc1 {[%clk 0:00:05.2]} 42... a3 {[%clk
0:00:23.7]} 43. Bb3 {[%clk 0:00:05.6]} 43... Nd3+ {[%clk 0:00:22.9]} 44. Kd2
{[%clk 0:00:05.4]} 44... Nc5 {[%clk 0:00:23.7]} 45. Bc4 {[%clk 0:00:02.4]} 45...
Kf6 {[%clk 0:00:17.5]} 46. Kc2 {[%clk 0:00:02.5]} 46... Ke5 {[%clk 0:00:17.6]}
47. Bf7 {[%clk 0:00:02]} 47... g5 {[%clk 0:00:17.7]} 48. Bg8 {[%clk 0:00:02.2]}
48... Kf4 {[%clk 0:00:18]} 49. Bd5 {[%clk 0:00:02]} 49... Ke5 {[%clk 0:00:18.2]}
50. Bf7 {[%clk 0:00:01.6]} 50... Kd4 {[%clk 0:00:18.7]} 51. Bg8 {[%clk
0:00:01.9]} 51... Nd3 {[%clk 0:00:18.7]} 52. Bf7 {[%clk 0:00:02.2]} 52... Nxf2
{[%clk 0:00:18.8]} 53. Kb3 {[%clk 0:00:03.1]} 53... Kc5 {[%clk 0:00:18.6]} 54.
Be6 {[%clk 0:00:02.3]} 54... Ne4 {[%clk 0:00:18.4]} 55. Bf5 {[%clk 0:00:02.5]}
55... Nd2+ {[%clk 0:00:18.5]} 56. Kc2 {[%clk 0:00:03.2]} 56... Nc4 {[%clk
0:00:18.7]} 57. Be6 {[%clk 0:00:03.6]} 57... Ne3+ {[%clk 0:00:18.7]} 58. Kc1
{[%clk 0:00:02.4]} 58... Kd4 {[%clk 0:00:17.9]} 59. Bb3 {[%clk 0:00:02.3]} 59...
Kc3 {[%clk 0:00:18]} 60. Be6 {[%clk 0:00:02]} 60... Nc4 {[%clk 0:00:17.5]} 61.
Kb1 {[%clk 0:00:01.7]} 61... b3 {[%clk 0:00:17.1]} 62. Bf5 {[%clk 0:00:02.6]}
62... a2+ {[%clk 0:00:16.2]} 63. Kc1 {[%clk 0:00:03.5]} 0-1